bitfinex-derivatives/quotes_SOLF0:USTF0_20241231
["timestamp","ask_amount","ask_price","bid_price","bid_amount"]
[1735616435146,2.6326,190.26,190.23,4.16321051]
[1735616435349,2.6326,190.26,190.22,2.6331]
[1735616435548,2.6326,190.26,190.23,4.16255659]
[1735616435747,2.6326,190.26,190.22,2.6331]
[1735616435948,2.6326,190.26,190.23,4.16210579]
[1735616436149,2.6326,190.26,190.22,2.6331]
[1735616436341,2.6326,190.26,190.23,4.16193432]
[1735616436544,30.41757994,190.29,190.21,8.50332742]
[1735616436857,21.91425252,190.29,190.25,8.50332742]
[1735616437045,21.91425252,190.29,190.27,8.50332742]
[1735616437248,21.91425252,190.29,190.28,4.16000884]
[1735616437447,21.91425252,190.29,190.28,6.79230884]
[1735616437652,21.91425252,190.29,190.28,4.16000884]
[1735616437846,147.58142245,190.33,190.28,4.16000884]
[1735616437847,23.90206297,190.33,190.28,4.16000884]
[1735616438048,23.90206297,190.33,190.29,12.66333626]
[1735616438247,23.90206297,190.33,190.29,8.50332742]
[1735616438442,2.6318,190.32,190.27,8.50332742]
[1735616438649,2.6318,190.32,190.28,4.15515344]
[1735616438854,2.6318,190.32,190.27,8.50332742]
[1735616439053,2.6318,190.32,190.28,4.15514596]
[1735616439353,2.6318,190.32,190.27,11.13572742]
[1735616439856,2.6319,190.31,190.27,8.50332742]
[1735616440648,1.98781045,190.33,190.27,8.50332742]
[1735616440849,8.50332742,190.32,190.25,8.50332742]
[1735616441050,8.50332742,190.3,190.23,11.49812742]
[1735616441251,3.02,190.29,190.24,4.15527867]
[1735616441448,3.02,190.29,190.23,11.49812742]
[1735616441846,2.6324,190.28,190.23,14.13112742]
[1735616442153,3.02,190.29,190.23,11.49812742]
[1735616442455,8.50332742,190.28,190.22,1.6134]
[1735616442955,8.50332742,190.28,190.23,8.50332742]
[1735616443251,2.6324,190.27,190.23,8.50332742]
[1735616443449,8.50332742,190.28,190.23,8.50332742]
[1735616444557,11.13562742,190.28,190.23,8.50332742]
[1735616446362,2.6323,190.28,190.23,8.50332742]
[1735616448559,2.6323,190.28,190.23,11.13622742]
[1735616448862,21.91425252,190.31,190.27,8.50332742]
[1735616449361,24.54615252,190.31,190.27,8.50332742]
[1735616449559,2.6319,190.31,190.27,8.50332742]
[1735616452761,5.00781045,190.33,190.27,8.50332742]
[1735616452966,2.6321,190.3,190.27,8.50332742]
[1735616454463,2.6323,190.29,190.25,2.6327]
[1735616454662,2.6323,190.29,190.26,12.65445575]
[1735616454861,2.6323,190.29,190.26,8.50332742]
[1735616455062,2.6323,190.29,190.25,2.6327]
[1735616455264,2.6323,190.29,190.26,12.65427218]
[1735616455465,2.6323,190.29,190.26,8.50332742]
[1735616456265,5.00781045,190.33,190.28,8.50332742]
[1735616456466,2.6319,190.31,190.28,8.50332742]
[1735616457363,5.00781045,190.33,190.28,8.50332742]
[1735616457558,1.98781045,190.33,190.3,8.50332742]
[1735616458558,1.98781045,190.33,190.3,11.13532742]
[1735616459162,1.98781045,190.33,190.3,8.50332742]
[1735616461067,4.61941045,190.33,190.3,8.50332742]
[1735616461762,2.6318,190.32,190.28,8.50332742]
[1735616463970,2.6319,190.31,190.28,8.50332742]
[1735616464472,1.98781045,190.33,190.28,8.50332742]
[1735616464776,4.61941045,190.33,190.28,8.50332742]
[1735616465473,4.61941045,190.33,190.3,11.13532742]
[1735616466073,1.98781045,190.33,190.3,11.13532742]
[1735616466569,21.91425252,190.38,190.32,8.50332742]
[1735616466767,21.91425252,190.38,190.3,3.02]
[1735616467077,21.91425252,190.38,190.34,8.50332742]
[1735616467572,21.91425252,190.38,190.32,8.50332742]
[1735616467573,8.50332742,190.38,190.32,8.50332742]
[1735616467773,8.50332742,190.38,190.3,11.52332742]
[1735616467970,11.52332742,190.38,190.3,11.13532742]
[1735616470174,8.50332742,190.36,190.28,8.50332742]
[1735616470373,3.02,190.38,190.26,8.50332742]
[1735616470374,8.50332742,190.34,190.26,8.50332742]
[1735616470775,2.632,190.31,190.26,11.13582742]
[1735616471479,8.50332742,190.32,190.26,8.50332742]
[1735616471776,8.50332742,190.32,190.24,8.50332742]
[1735616472572,2.6322,190.29,190.24,11.13612742]
[1735616472774,8.50332742,190.3,190.24,8.50332742]
[1735616473478,8.50332742,190.28,190.22,1.6134]
[1735616473776,8.50332742,190.28,190.23,4.14874266]
[1735616473977,8.50332742,190.28,190.22,10.11672742]
[1735616474173,8.50332742,190.28,190.23,4.14884231]
[1735616474372,2.6326,190.26,190.22,10.11672742]
[1735616474571,11.52332742,190.28,190.23,4.14941566]
[1735616474770,11.52332742,190.28,190.22,10.11672742]
[1735616476478,2.6326,190.26,190.22,10.11672742]
[1735616476776,3.02,190.28,190.24,8.50332742]
[1735616477784,3.02,190.28,190.25,4.15216635]
[1735616477982,2.6323,190.29,190.24,8.50332742]
[1735616478487,2.6323,190.29,190.25,4.15316635]
[1735616478678,2.6323,190.29,190.24,8.50332742]
[1735616479381,2.6324,190.28,190.24,8.50332742]
[1735616479580,8.50332742,190.29,190.22,10.11672742]
[1735616480278,2.6327,190.25,190.22,8.50332742]
[1735616482375,8.50332742,190.29,190.2,2.6334]
[1735616482376,2.6329,190.24,190.2,2.6334]
[1735616482580,2.6329,190.24,190.21,12.65784677]
[1735616482880,2.6329,190.24,190.21,8.50332742]
[1735616483276,2.633,190.23,190.21,8.50332742]
[1735616483475,2.633,190.23,190.19,11.13672742]
[1735616484682,2.633,190.23,190.19,2.6334]
[1735616484985,2.6331,190.22,190.18,8.50332742]
[1735616486185,8.50332742,190.23,190.13,1.4687]
[1735616486381,8.50332742,190.23,190.16,8.50332742]
[1735616486587,3.02,190.26,190.16,8.50332742]
[1735616486588,8.50332742,190.21,190.16,8.50332742]
[1735616486789,11.52332742,190.21,190.16,8.50332742]
[1735616487487,2.6337,190.19,190.16,8.50332742]
[1735616488586,2.6338,190.18,190.14,2.6342]
[1735616489679,2.6338,190.17,190.13,9.97202742]
[1735616489885,11.52332742,190.21,190.13,9.97202742]
[1735616490487,2.6337,190.18,190.13,12.60622742]
[1735616495987,11.13692742,190.19,190.14,2.6342]
[1735616496685,11.52332742,190.21,190.13,9.97202742]
[1735616496989,14.15672742,190.21,190.16,2.634]
[1735616497185,11.52332742,190.21,190.13,9.97202742]
[1735616498491,2.6334,190.2,190.15,11.13742742]
[1735616500191,2.6336,190.19,190.15,8.50332742]
[1735616500488,2.6336,190.19,190.13,9.97202742]
[1735616501389,8.50332742,190.19,190.13,8.50332742]
[1735616501787,8.50332742,190.15,190.04,4.7035]
[1735616501988,11.52332742,190.15,190.09,8.50332742]
[1735616502993,2.6343,190.14,190.09,8.50332742]
[1735616503189,11.52332742,190.15,190.07,8.50332742]
[1735616503393,3.02,190.15,190.07,8.50332742]
[1735616503793,2.6344,190.14,190.08,2.6351]
[1735616504092,11.52332742,190.15,190.07,8.50332742]
[1735616504996,2.6345,190.13,190.07,11.13852742]
[1735616505599,2.6345,190.12,190.07,11.13852742]
[1735616506895,11.52332742,190.15,190.07,11.13852742]
[1735616507100,2.6348,190.1,190.07,8.50332742]
[1735616508599,2.6346,190.12,190.08,2.635]
[1735616509611,2.6346,190.12,190.07,11.13852742]
[1735616512605,2.6346,190.12,190.08,2.635]
[1735616513503,8.50332742,190.13,190.02,54.18027577]
[1735616513709,2.6349,190.09,190.04,2.6356]
[1735616514299,8.50332742,190.11,190.05,8.50332742]
[1735616514504,14.15782742,190.13,190.08,2.635]
[1735616515408,11.52332742,190.13,190.07,8.50332742]
[1735616515603,11.52332742,190.13,190.07,11.13852742]
[1735616515604,2.6345,190.12,190.07,11.13852742]
[1735616516411,2.6345,190.12,190.07,2.6352]
[1735616516808,2.6346,190.11,190.07,2.6352]
[1735616517213,11.52332742,190.13,190.05,8.50332742]
[1735616517513,8.50332742,190.11,189.99,3.02]
[1735616517714,8.50332742,190.11,190.03,8.50332742]
[1735616518906,2.6351,190.08,190.03,11.13892742]
[1735616520612,8.50332742,190.11,190.03,11.13892742]
[1735616520814,2.6352,190.07,190.03,11.13892742]
[1735616522116,2.6351,190.08,190.05,8.50332742]
[1735616529811,2.6351,190.08,190.04,2.6356]
[1735616532916,2.6346,190.11,190.07,11.13842742]
[1735616533122,7.31731214,190.12,190.07,8.50332742]
[1735616533315,29.23156466,190.12,190.07,8.50332742]
[1735616534418,2.6345,190.12,190.08,2.635]
[1735616536721,2.6345,190.12,190.07,8.50332742]
[1735616538222,2.6347,190.11,190.07,8.50332742]
[1735616539021,2.6347,190.11,190.06,2.6352]
[1735616542024,2.6348,190.1,190.06,2.6352]
[1735616543419,2.6351,190.08,190.04,2.6356]
[1735616543918,2.6351,190.08,190.03,11.13902742]
[1735616544224,2.6351,190.08,190.04,4.16429327]
[1735616544427,2.6351,190.08,190.05,4.16608632]
[1735616544624,2.6353,190.07,190.03,11.13902742]
[1735616544928,8.50332742,190.09,190.0,2.6361]
[1735616545224,8.50332742,190.09,190.01,12.67009867]
[1735616545424,3.02,190.08,190.02,4.16677125]
[1735616545726,3.02,190.08,190.03,4.16677125]
[1735616545925,3.02,190.08,190.01,8.50332742]
[1735616546526,2.6356,190.05,190.02,4.17058628]
[1735616546722,2.6356,190.05,190.01,8.50332742]
[1735616547028,7.31731214,190.07,190.02,4.17049133]
[1735616547338,7.31731214,190.07,190.01,8.50332742]
[1735616547523,7.31731214,190.07,189.97,3.02]
[1735616547524,32.25156466,190.08,190.03,8.50332742]
[1735616547723,32.25156466,190.08,190.04,4.17087572]
[1735616547925,32.25156466,190.08,190.03,8.50332742]
[1735616548233,32.25156466,190.08,190.04,4.17054581]
[1735616548526,32.25156466,190.08,190.03,8.50332742]
[1735616548726,3.02,190.08,190.04,4.17131805]
[1735616548922,7.31731214,190.09,190.03,8.50332742]
[1735616549124,7.31731214,190.09,190.05,8.50332742]
[1735616549524,2.6352,190.08,190.05,8.50332742]
[1735616549827,7.31731214,190.1,190.05,8.50332742]
[1735616550128,7.31731214,190.1,190.03,8.50332742]
[1735616550428,2.6352,190.07,190.04,4.17178785]
[1735616550615,2.6352,190.07,190.03,11.13902742]
[1735616550817,2.6352,190.07,190.04,4.1722097]
[1735616551127,2.6355,190.05,190.03,8.50332742]
[1735616551325,8.50332742,190.07,190.0,8.50332742]
[1735616551725,8.50332742,190.07,190.01,4.17277993]
[1735616551921,8.50332742,190.07,190.02,4.17277993]
[1735616552121,8.50332742,190.07,190.0,8.50332742]
[1735616552324,8.50332742,190.07,190.01,4.17299599]
[1735616552522,8.50332742,190.07,190.0,8.50332742]
[1735616552523,8.50332742,190.07,190.02,4.17299599]
[1735616552722,8.50332742,190.07,190.0,8.50332742]
[1735616553025,2.6357,190.04,190.01,4.17264034]
[1735616553223,2.6357,190.04,190.02,4.17264034]
[1735616553423,2.6357,190.04,190.0,8.50332742]
[1735616553623,2.6357,190.04,190.01,4.17244812]
[1735616553826,11.52332742,190.05,189.97,8.50332742]
[1735616554025,2.6362,190.0,189.97,8.50332742]
[1735616555529,2.6364,189.99,189.96,4.5386]
[1735616556224,2.6364,189.99,189.96,1.5007]
[1735616556731,2.6365,189.98,189.96,1.5007]
[1735616557126,8.50332742,190.01,189.96,1.5007]
[1735616557632,2.6363,189.99,189.96,1.5007]
[1735616562236,2.6362,190.0,189.96,1.5007]
[1735616566532,2.6374,189.92,189.86,2.638]
[1735616566841,11.52332742,189.92,189.86,2.638]
[1735616567343,2.6374,189.91,189.86,2.638]
[1735616567536,11.52332742,189.92,189.85,8.50332742]
[1735616567731,2.6379,189.88,189.85,8.50332742]
[1735616567932,8.50332742,189.9,189.82,1.4605]
[1735616568137,8.50332742,189.9,189.82,4.099]
[1735616569442,2.638,189.87,189.82,4.099]
[1735616569838,3.02,189.94,189.85,8.50332742]
[1735616570040,11.52332742,189.94,189.87,8.50332742]
[1735616571540,2.6372,189.93,189.87,11.14112742]
[1735616572142,2.6373,189.92,189.87,11.14112742]
[1735616573449,11.14062742,189.92,189.87,2.6378]
[1735616574146,8.50332742,189.92,189.85,8.50332742]
[1735616574852,8.50332742,189.92,189.82,4.4805]
[1735616574853,2.6378,189.88,189.83,11.14182742]
[1735616575751,2.6377,189.89,189.85,2.6383]
[1735616578853,11.14092742,189.9,189.85,2.6383]
[1735616579261,3.02,189.89,189.85,2.6383]
[1735616580761,2.6379,189.88,189.83,11.14172742]
[1735616583062,5.6577,189.89,189.84,2.6384]
[1735616583564,3.02,189.89,189.85,2.6382]
[1735616583768,7.31731214,189.95,189.87,8.50332742]
[1735616584062,18.84063956,189.95,189.87,8.50332742]
[1735616584365,2.6372,189.93,189.89,2.6376]
[1735616584867,14.16032742,189.95,189.9,2.6375]
[1735616585060,11.52332742,189.95,189.9,2.6375]
[1735616586457,2.637,189.94,189.9,2.6375]
[1735616587054,2.637,189.94,189.89,8.50332742]
[1735616589766,2.637,189.94,189.89,11.14092742]
[1735616590467,2.6372,189.93,189.89,8.50332742]
[1735616593264,2.6371,189.94,189.89,8.50332742]
[1735616593466,11.52332742,189.95,189.89,8.50332742]
[1735616594469,2.6373,189.93,189.89,8.50332742]
[1735616599765,2.6373,189.92,189.89,8.50332742]
[1735616602075,29.23156466,189.96,189.91,8.50332742]
[1735616602264,29.23156466,189.96,189.93,8.50332742]
[1735616603073,7.31731214,189.97,189.93,8.50332742]
[1735616603270,7.31731214,189.97,189.91,8.50332742]
[1735616603471,2.637,189.95,189.91,8.50332742]
[1735616604470,8.50332742,189.98,189.91,8.50332742]
[1735616604670,2.6373,189.93,189.91,8.50332742]
[1735616606370,8.50332742,189.96,189.89,3.0483]
[1735616606574,29.23156466,189.99,189.9,4.12600091]
[1735616606575,8.50332742,189.94,189.9,4.12600091]
[1735616606774,8.50332742,189.94,189.89,1.4692]
[1735616606979,8.50332742,189.94,189.9,4.12609368]
[1735616607177,8.50332742,189.94,189.89,1.4692]
[1735616607478,8.50332742,189.94,189.9,4.12623462]
[1735616607674,8.50332742,189.94,189.89,1.4692]
[1735616607872,8.50332742,189.94,189.9,4.12700542]
[1735616608074,8.50332742,189.94,189.88,8.50332742]
[1735616608273,2.6377,189.9,189.86,11.14132742]
[1735616608578,2.6377,189.9,189.87,4.12776307]
[1735616608778,2.6377,189.9,189.86,11.14132742]
[1735616613884,7.31731214,189.93,189.86,8.50332742]
[1735616614080,2.6375,189.91,189.87,2.638]
[1735616615085,7.31731214,189.93,189.88,2.6378]
[1735616615280,7.31731214,189.93,189.88,8.50332742]
[1735616615484,7.31731214,189.93,189.89,5.65816994]
[1735616615682,7.31731214,189.93,189.89,1.5248]
[1735616616085,58.09850794,189.95,189.9,2.6375]
[1735616616086,2.637,189.95,189.9,2.6375]
[1735616616882,40.75489208,189.96,189.9,2.6375]
[1735616617286,18.84063956,189.96,189.9,2.6375]
[1735616617880,7.31731214,189.96,189.95,2.6369]
[1735616618086,7.31731214,189.96,189.92,8.50332742]
[1735616618288,29.23156466,189.96,189.93,4.13254609]
[1735616618587,29.23156466,189.96,189.9,1.554]
[1735616618777,29.23156466,189.96,189.92,8.50332742]
[1735616619487,8.50332742,189.98,189.92,8.50332742]
[1735616620485,2.6368,189.96,189.91,2.6373]
[1735616620986,8.50332742,189.98,189.92,4.13181891]
[1735616621188,9.95401214,189.97,189.93,2.637]
[1735616621686,7.31731214,189.97,189.94,2.637]
[1735616622289,2.6365,189.98,189.94,2.637]
[1735616624381,2.6365,189.98,189.92,8.50332742]
[1735616624582,8.50332742,189.99,189.93,4.13205638]
[1735616624785,8.50332742,189.99,189.92,8.50332742]
[1735616624988,8.50332742,189.99,189.93,4.13205633]
[1735616625188,8.50332742,189.99,189.92,8.50332742]
[1735616625382,2.6365,189.98,189.93,4.13190603]
[1735616625589,2.6365,189.98,189.94,2.637]
[1735616627295,8.50332742,189.99,189.92,8.50332742]
[1735616627601,3.02,190.02,189.94,8.50332742]
[1735616627790,3.02,190.02,189.95,4.1326779]
[1735616627991,3.02,190.02,189.96,4.1326779]
[1735616628194,11.13942742,190.01,189.96,2.6367]
[1735616628489,8.50332742,190.01,189.94,8.50332742]
[1735616628690,8.50332742,190.01,189.95,4.13229354]
[1735616628889,8.50332742,190.01,189.95,2.6368]
[1735616628890,2.6363,190.0,189.95,2.6368]
[1735616629887,11.13942742,190.01,189.96,2.6366]
[1735616631891,2.6361,190.01,189.97,2.6366]
[1735616634301,2.6361,190.01,189.94,8.50332742]
[1735616634500,2.6361,190.01,189.96,2.6367]
[1735616634702,11.13942742,190.01,189.96,2.6367]
[1735616638403,8.50332742,190.01,189.94,8.50332742]
[1735616639504,2.6363,189.99,189.95,2.6369]
[1735616640810,2.6363,189.99,189.94,8.50332742]
[1735616641108,2.6363,189.99,189.96,2.6367]
[1735616642307,8.50332742,190.01,189.96,2.6367]
[1735616642503,2.6362,190.0,189.96,2.6367]
[1735616643902,2.6358,190.03,189.99,2.6363]
[1735616644098,18.84063956,190.06,189.98,8.50332742]
[1735616644511,2.6357,190.04,189.99,2.6363]
[1735616650104,2.6358,190.03,189.99,2.6363]
[1735616654414,8.50332742,190.04,189.98,8.50332742]
[1735616654721,2.636,190.02,189.98,8.50332742]
[1735616655424,8.50332742,190.04,189.95,2.6368]
[1735616655718,8.50332742,190.02,189.95,11.14012742]
[1735616655913,2.6362,190.0,189.95,8.50332742]
[1735616656219,11.52332742,190.02,189.95,8.50332742]
[1735616657321,2.6364,189.99,189.95,8.50332742]
[1735616658516,8.50332742,189.96,189.83,22.0083294]
[1735616658716,8.50332742,189.96,189.89,8.50332742]
[1735616658920,8.50332742,189.96,189.88,8.50332742]
[1735616659120,2.6373,189.93,189.88,11.14112742]
[1735616659319,8.50332742,189.94,189.89,4.1312915]
[1735616659519,3.02,189.97,189.86,8.50332742]
[1735616659715,8.50332742,189.93,189.87,4.13134516]
[1735616659923,2.6376,189.91,189.86,11.14132742]
[1735616661220,2.6373,189.93,189.88,11.14102742]
[1735616661416,17.33963956,189.96,189.88,8.50332742]
[1735616662319,10.02232742,189.96,189.88,8.50332742]
[1735616662526,2.6372,189.93,189.89,2.6377]
[1735616663623,2.6376,189.91,189.86,2.6381]
[1735616663824,2.6376,189.91,189.87,8.50332742]
[1735616665423,2.6376,189.91,189.87,11.14132742]
[1735616665625,2.637,189.94,189.89,8.50332742]
[1735616666524,2.637,189.94,189.9,2.6376]
[1735616667428,2.6372,189.93,189.89,8.50332742]
[1735616668927,2.637,189.94,189.89,11.14102742]
[1735616669821,2.6367,189.97,189.92,2.6372]
[1735616670026,11.52332742,189.98,189.91,8.50332742]
[1735616670528,14.15982742,189.98,189.93,11.14032742]
[1735616670728,11.13982742,189.98,189.93,11.14032742]
[1735616671223,8.50332742,189.98,189.93,8.50332742]
[1735616671428,14.15962742,190.0,189.93,8.50332742]
[1735616671630,11.13962742,190.0,189.95,8.50332742]
[1735616671832,2.6363,190.0,189.95,8.50332742]
[1735616672130,2.6361,190.01,189.95,8.50332742]
[1735616672322,3.02,190.02,189.97,8.50332742]
[1735616673233,3.02,190.02,189.99,8.50332742]
[1735616674034,3.02,190.06,189.99,8.50332742]
[1735616674225,8.50332742,190.05,189.99,8.50332742]
[1735616674430,2.6356,190.04,189.99,11.13962742]
[1735616677535,2.6356,190.04,189.99,2.6363]
[1735616678932,3.02,190.06,190.01,2.636]
[1735616680433,2.6355,190.05,190.01,2.636]
[1735616682838,2.6359,190.03,189.98,2.6364]
[1735616683534,2.6359,190.02,189.98,2.6364]
[1735616683734,8.50332742,190.03,189.97,11.13992742]
[1735616683935,3.02,190.06,189.97,11.13992742]
[1735616684135,8.50332742,190.03,189.97,11.13992742]
[1735616684434,2.6359,190.02,189.98,2.6365]
[1735616688643,2.6358,190.03,189.99,2.6363]
[1735616688845,3.02,190.06,189.99,8.50332742]
[1735616688846,11.52332742,190.06,189.99,8.50332742]
[1735616690445,3.02,190.06,190.03,2.6357]
[1735616690646,2.6352,190.07,190.03,2.6357]
[1735616691745,2.6352,190.07,189.98,3.02]
[1735616692047,2.6354,190.06,190.02,2.6359]
[1735616695548,11.13852742,190.07,190.03,2.6357]
[1735616696740,2.6352,190.07,190.03,2.6357]
[1735616706051,2.6354,190.06,190.02,2.6358]
[1735616706356,8.50332742,190.06,189.99,8.50332742]
[1735616706746,2.6356,190.04,189.99,11.13962742]
[1735616706951,8.50332742,190.06,189.99,11.13962742]
[1735616707654,2.6356,190.04,189.99,11.13962742]
[1735616708950,2.6356,190.04,190.0,2.6362]
[1735616709651,2.6359,190.02,189.98,2.6364]
[1735616709857,8.50332742,190.04,189.97,8.50332742]
[1735616710058,8.50332742,190.02,189.95,8.50332742]
[1735616710256,2.6365,189.99,189.94,2.637]
[1735616710452,8.50332742,189.98,189.93,10.00972742]
[1735616710949,8.50332742,189.96,189.9,8.50332742]
[1735616711156,8.50332742,189.96,189.89,15.83943722]
[1735616711350,8.50332742,189.96,189.89,8.50332742]
[1735616711555,2.6371,189.95,189.9,2.6376]
[1735616712760,2.6371,189.94,189.89,11.14102742]
[1735616713153,8.50332742,189.94,189.88,1.4737]
[1735616713458,2.6372,189.93,189.87,10.01212742]
[1735616714558,8.50332742,189.92,189.81,3.1959]
[1735616714757,8.50332742,189.92,189.85,8.50332742]
[1735616715555,8.50332742,189.9,189.85,8.50332742]
[1735616715857,11.52332742,189.9,189.83,8.50332742]
[1735616716457,14.16092742,189.9,189.85,2.6383]
[1735616717559,2.6378,189.89,189.84,2.6384]
[1735616718357,2.6382,189.86,189.64,181.05660213]
[1735616718556,2.6382,189.86,189.81,8.50332742]
[1735616718761,8.50332742,189.86,189.79,8.50332742]
[1735616719676,8.50332742,189.88,189.83,8.50332742]
[1735616719852,11.52332742,189.9,189.83,8.50332742]
[1735616720960,8.50332742,189.9,189.83,8.50332742]
[1735616721258,8.50332742,189.88,189.83,2.6386]
[1735616721665,8.50332742,189.9,189.83,2.6386]
[1735616722465,2.6378,189.89,189.83,2.6386]
[1735616722765,8.50332742,189.88,189.82,8.50332742]
[1735616723069,11.14132742,189.88,189.82,8.50332742]
[1735616723359,8.50332742,189.88,189.82,11.14202742]
[1735616723565,2.6382,189.86,189.8,8.50332742]
[1735616723766,11.14152742,189.86,189.8,8.50332742]
[1735616724167,14.16152742,189.86,189.8,8.50332742]
[1735616724364,14.16152742,189.86,189.81,2.6388]
[1735616725866,2.6384,189.85,189.8,8.50332742]
[1735616726568,11.52332742,189.86,189.8,8.50332742]
[1735616726869,2.6386,189.83,189.79,2.639]
[1735616727061,11.52332742,189.86,189.79,2.639]
[1735616727263,2.6384,189.85,189.79,2.639]
[1735616728665,11.52332742,189.86,189.8,8.50332742]
[1735616728867,11.52332742,189.86,189.82,2.6387]
[1735616731169,8.50332742,189.88,189.8,8.50332742]
[1735616731369,11.52332742,189.9,189.82,8.50332742]
[1735616731570,8.50332742,189.92,189.84,8.50332742]
[1735616731772,11.52332742,189.92,189.87,2.6379]
[1735616732977,14.16072742,189.92,189.87,2.6379]
[1735616733366,8.50332742,189.9,189.82,8.50332742]
[1735616733572,2.6377,189.89,189.82,8.50332742]
[1735616734171,2.6377,189.89,189.84,2.6384]
[1735616734568,3.02,189.92,189.83,2.6385]
[1735616734569,11.14132742,189.88,189.83,2.6385]
[1735616734975,3.02,189.87,189.83,2.6385]
[1735616735367,3.02,189.87,189.8,8.50332742]
[1735616735572,5.6581,189.87,189.82,2.6387]
[1735616735771,3.02,189.87,189.8,8.50332742]
[1735616735973,8.50332742,189.86,189.78,8.50332742]
[1735616736676,2.6386,189.83,189.79,2.6391]
[1735616738770,2.6388,189.82,189.77,2.6393]
[1735616739178,8.50332742,189.84,189.77,2.6393]
[1735616739479,2.6387,189.82,189.77,2.6393]
[1735616739677,2.6387,189.82,189.76,13.13022742]
[1735616739678,2.6387,189.82,189.78,2.6392]
[1735616739880,8.50332742,189.84,189.78,2.6392]
[1735616740082,2.6386,189.83,189.76,13.13022742]
[1735616740277,2.6386,189.83,189.78,8.50332742]
[1735616741478,2.6386,189.83,189.79,2.6391]
[1735616744281,8.50332742,189.86,189.8,2.6388]
[1735616744482,8.50332742,189.84,189.78,8.50332742]
[1735616744882,11.14182742,189.84,189.79,2.6391]
[1735616745783,2.6386,189.83,189.79,2.6391]
[1735616749188,8.50332742,189.86,189.81,2.6388]
[1735616749393,11.52332742,189.86,189.81,2.6388]
[1735616750093,14.16142742,189.86,189.82,2.6387]
[1735616750292,3.02,189.86,189.8,8.50332742]
[1735616750495,3.02,189.86,189.82,8.50332742]
[1735616750787,8.50332742,189.88,189.82,8.50332742]
[1735616750981,40.63068215,189.9,189.82,8.50332742]
[1735616751181,11.52332742,189.9,189.82,8.50332742]
[1735616751388,7.27683868,189.92,189.84,8.50332742]
[1735616751584,7.27683868,189.92,189.78,3.02]
[1735616751585,10.29683868,189.92,189.86,8.50332742]
[1735616752391,7.27683868,189.92,189.86,8.50332742]
[1735616752591,8.50332742,189.93,189.87,4.11538166]
[1735616752793,8.50332742,189.93,189.86,8.50332742]
[1735616752989,8.50332742,189.93,189.87,4.1153794]
[1735616753188,8.50332742,189.93,189.88,2.6378]
[1735616753690,11.14052742,189.93,189.88,2.6378]
[1735616754291,8.50332742,189.93,189.86,8.50332742]
[1735616755284,8.50332742,189.93,189.84,4.6401]
[1735616755285,2.6378,189.89,189.84,15.78172742]
[1735616755492,2.6378,189.89,189.85,4.12776959]
[1735616755692,2.6378,189.89,189.84,15.78172742]
[1735616755892,8.50332742,189.91,189.86,2.6381]
[1735616755893,2.6376,189.9,189.86,2.6381]
[1735616756198,8.50332742,189.93,189.86,8.50332742]
[1735616756383,8.50332742,189.93,189.87,4.12744539]
[1735616756589,8.50332742,189.93,189.88,4.12744539]
[1735616756786,8.50332742,189.93,189.86,8.50332742]
[1735616756994,37.61068215,189.95,189.88,8.50332742]
[1735616757185,40.63068215,189.95,189.88,8.50332742]
[1735616757388,11.52332742,189.95,189.89,4.1278234]
[1735616757587,11.52332742,189.95,189.88,8.50332742]
[1735616758286,8.50332742,189.95,189.88,8.50332742]
[1735616758486,11.14022742,189.95,189.9,2.6375]
[1735616759989,11.14022742,189.95,189.88,8.50332742]
[1735616759990,8.50332742,189.95,189.88,8.50332742]
[1735616760293,2.6371,189.94,189.89,2.6377]
[1735616760493,8.50332742,189.91,189.84,1.5553]
[1735616760692,8.50332742,189.89,189.85,4.12785899]
[1735616760893,8.50332742,189.89,189.84,4.1937]
[1735616761094,2.6381,189.86,189.85,4.12793987]
[1735616761288,2.6381,189.86,189.82,2.6387]
[1735616761498,2.6381,189.86,189.83,4.1280032]
[1735616761691,2.6377,189.89,189.85,2.6382]
[1735616761893,11.52332742,189.91,189.84,8.50332742]
[1735616762193,11.52332742,189.91,189.85,4.1280978]
[1735616762389,11.52332742,189.91,189.84,8.50332742]
[1735616762585,11.52332742,189.91,189.85,4.12809937]
[1735616762790,11.52332742,189.91,189.84,8.50332742]
[1735616762992,11.52332742,189.91,189.85,4.12809937]
[1735616763193,11.52332742,189.91,189.84,8.50332742]
[1735616763394,2.6377,189.89,189.84,8.50332742]